bitfinex/quotes_BTCUSD_20260127
["timestamp","ask_amount","ask_price","bid_price","bid_amount"]
[1769544348223,0.02396024,88617.0,88596.0,0.20223606]
[1769544349883,0.02396024,88616.0,88596.0,0.20223606]
[1769544350284,0.02396024,88616.0,88591.0,6.804e-05]
[1769544350285,0.02396024,88616.0,88597.0,0.0228561]
[1769544350488,0.02396024,88616.0,88598.0,0.17937996]
[1769544350652,0.02396024,88616.0,88600.0,0.26803842]
[1769544351305,0.11301478,88615.0,88600.0,0.26803842]
[1769544351500,0.11301478,88614.0,88600.0,0.26803842]
[1769544351746,0.11301478,88613.0,88600.0,0.26803842]
[1769544351950,0.11301478,88612.0,88600.0,0.26803842]
[1769544352206,0.02396024,88616.0,88600.0,0.26803842]
[1769544352207,0.11301478,88611.0,88600.0,0.26803842]
[1769544352374,0.11301478,88615.0,88600.0,0.26803842]
[1769544352690,0.11301478,88614.0,88600.0,0.26803842]
[1769544352914,0.11301478,88613.0,88600.0,0.26803842]
[1769544353142,0.11301478,88612.0,88600.0,0.26803842]
[1769544353386,0.02396024,88610.0,88591.0,0.179448]
[1769544353620,0.11301478,88609.0,88591.0,0.2023041]
[1769544353847,0.11301478,88609.0,88593.0,0.20223606]
[1769544357677,0.11301478,88609.0,88591.0,6.804e-05]
[1769544357872,0.02470563,88605.0,88583.0,0.0002506]
[1769544358095,0.02470563,88603.0,88583.0,0.18930263]
[1769544358270,0.02470563,88603.0,88584.0,0.02344382]
[1769544358488,0.02470563,88603.0,88585.0,0.21239116]
[1769544359429,0.17841423,88602.0,88583.0,0.00035529]
[1769544359635,0.02470563,88599.0,88583.0,0.00035529]
[1769544360043,0.02470563,88598.0,88583.0,0.00035529]
[1769544360413,0.17841423,88597.0,88583.0,0.00035529]
[1769544360612,0.02470563,88596.0,88583.0,0.00035529]
[1769544363586,0.02470563,88595.0,88583.0,0.00035529]
[1769544363966,0.02470563,88591.0,88583.0,0.00035529]
[1769544364170,0.17841423,88590.0,88571.0,0.18894734]
[1769544364372,0.22573163,88601.0,88571.0,0.18894734]
[1769544364373,0.02470563,88588.0,88571.0,0.00013914]
[1769544364718,0.20311986,88587.0,88571.0,0.00013914]
[1769544366558,0.32447654,88593.0,88571.0,0.00013914]
[1769544366559,0.02470563,88586.0,88571.0,0.00013914]
[1769544366842,0.05417577,88601.0,88555.0,0.02344382]
[1769544366843,0.0002163,88570.0,88555.0,0.02344382]
[1769544367010,0.00027384,88570.0,88555.0,0.02344382]
[1769544367196,5.754e-05,88570.0,88555.0,0.02344382]
[1769544367376,5.754e-05,88570.0,88557.0,0.18916364]
[1769544367802,5.754e-05,88570.0,88557.0,0.21260746]
[1769544368003,5.754e-05,88570.0,88561.0,0.18894734]
[1769544368206,5.754e-05,88570.0,88561.0,0.21239116]
[1769544369631,5.754e-05,88570.0,88562.0,0.02344382]
[1769544369833,5.754e-05,88570.0,88563.0,0.21239116]
[1769544370307,5.754e-05,88570.0,88564.0,0.02344382]
[1769544370536,5.754e-05,88570.0,88567.0,0.18894734]
[1769544370737,5.754e-05,88570.0,88567.0,0.21239116]
[1769544371399,5.754e-05,88570.0,88567.0,0.02344382]
[1769544371787,5.754e-05,88570.0,88567.0,0.02114342]
[1769544371944,5.754e-05,88570.0,88567.0,0.0188425]
[1769544372150,5.754e-05,88570.0,88567.0,0.01654105]
[1769544372361,5.754e-05,88570.0,88562.0,0.18894734]
[1769544372582,5.754e-05,88570.0,88562.0,0.21239116]
[1769544374263,5.754e-05,88570.0,88562.0,0.18894734]
[1769544374466,5.754e-05,88570.0,88563.0,0.02344382]
[1769544374888,5.754e-05,88570.0,88564.0,0.18894734]
[1769544375089,5.754e-05,88570.0,88558.0,0.02344382]
[1769544375315,5.754e-05,88570.0,88558.0,0.18894734]
[1769544375650,5.754e-05,88570.0,88557.0,0.0002163]
[1769544376053,0.17841423,88569.0,88557.0,0.0002163]
[1769544376230,5.754e-05,88570.0,88557.0,0.0002163]
[1769544376620,5.754e-05,88570.0,88559.0,0.02344382]
[1769544376824,5.754e-05,88570.0,88560.0,0.02344382]
[1769544377787,5.754e-05,88570.0,88560.0,0.21239116]
[1769544377991,5.754e-05,88570.0,88562.0,0.18894734]
[1769544378315,5.754e-05,88570.0,88563.0,0.02344382]
[1769544379180,5.754e-05,88570.0,88564.0,0.02344382]
[1769544379330,5.754e-05,88570.0,88564.0,0.02172853]
[1769544379539,5.754e-05,88570.0,88564.0,0.01986847]
[1769544379737,5.754e-05,88570.0,88564.0,0.01754317]
[1769544379942,5.754e-05,88570.0,88564.0,0.01568275]
[1769544380143,5.754e-05,88570.0,88564.0,0.01382217]
[1769544380344,5.754e-05,88570.0,88565.0,0.02344382]
[1769544380549,5.754e-05,88570.0,88567.0,0.02344382]
[1769544380730,5.754e-05,88570.0,88567.0,0.02251329]
[1769544380913,5.754e-05,88570.0,88567.0,0.02065205]
[1769544381110,5.754e-05,88570.0,88567.0,0.01679049]
[1769544381313,0.01922145,88585.0,88568.0,0.02297832]
[1769544381572,0.11251822,88584.0,88568.0,0.2100634]
[1769544381787,0.11251822,88583.0,88568.0,0.20820066]
[1769544381947,0.11251822,88582.0,88568.0,0.20694917]
[1769544382269,0.11251822,88581.0,88568.0,0.20322029]
[1769544382501,0.01922145,88585.0,88568.0,0.20088909]
[1769544382678,0.11253318,88584.0,88568.0,0.19855736]
[1769544382896,0.11253318,88583.0,88568.0,0.19622511]
[1769544383216,0.01922145,88585.0,88568.0,0.19482552]
[1769544383353,0.1125527,88584.0,88568.0,0.19482552]
[1769544383566,0.1125527,88583.0,88568.0,0.19482552]
[1769544383765,0.1125527,88582.0,88568.0,0.19482552]
[1769544383984,0.02318143,88584.0,88568.0,0.19482552]
[1769544384175,0.1125588,88583.0,88568.0,0.19482552]
[1769544384401,0.02318143,88584.0,88568.0,0.19482552]
[1769544384402,0.1125588,88582.0,88568.0,0.19482552]
[1769544384601,0.02318143,88584.0,88568.0,0.19482552]
[1769544384777,0.11258444,88583.0,88568.0,0.19482552]
[1769544384961,0.11258444,88582.0,88568.0,0.19482552]
[1769544385159,0.02311293,88594.0,88582.0,0.00925502]
[1769544385378,0.11257583,88593.0,88582.0,0.19512151]
[1769544385623,0.11257583,88592.0,88582.0,0.19246916]
[1769544385792,0.02311293,88600.0,88582.0,0.19013641]
[1769544385994,0.11261057,88599.0,88582.0,0.1878029]
[1769544386196,0.02311293,88596.0,88576.0,0.18580895]
[1769544386471,0.02311293,88596.0,88562.0,0.02338765]
[1769544386472,0.26826043,88586.0,88562.0,0.02338765]
[1769544386677,0.26826043,88580.0,88563.0,0.18580895]
[1769544386849,0.18064978,88582.0,88564.0,0.02338765]
[1769544387052,0.18064978,88582.0,88565.0,0.2091966]
[1769544387836,0.18064978,88582.0,88565.0,0.2092995]
[1769544389540,0.02311293,88584.0,88565.0,0.2092995]
[1769544389740,0.11279378,88583.0,88570.0,0.26826043]
[1769544390105,0.02311293,88584.0,88569.0,0.18580895]
[1769544390386,0.11279378,88583.0,88569.0,0.18580895]
[1769544390543,0.02311293,88584.0,88565.0,0.2092995]
[1769544390727,0.11279934,88583.0,88565.0,0.2092995]
[1769544390929,0.02311293,88584.0,88565.0,0.2092995]
[1769544391126,0.11279938,88583.0,88565.0,0.2092995]
[1769544391330,0.11282499,88582.0,88565.0,0.2092995]
[1769544391566,0.02311293,88584.0,88565.0,0.2092995]
[1769544391894,0.11282499,88583.0,88565.0,0.2092995]
[1769544392094,0.11282499,88582.0,88565.0,0.2092995]
[1769544392253,0.1128524,88581.0,88565.0,0.2092995]
[1769544392439,0.02311293,88584.0,88565.0,0.2092995]
[1769544392660,0.11285246,88583.0,88565.0,0.2092995]
[1769544392862,0.11285246,88582.0,88565.0,0.2092995]
[1769544393066,0.11285246,88581.0,88565.0,0.2092995]
[1769544393265,0.11288099,88580.0,88565.0,0.2092995]
[1769544393508,0.02311293,88584.0,88565.0,0.2092995]
[1769544393704,0.11288407,88583.0,88565.0,0.2092995]
[1769544393911,0.18064978,88579.0,88565.0,0.0001029]
[1769544394107,0.18064978,88576.0,88565.0,0.0001029]
[1769544394322,0.11292406,88575.0,88565.0,0.0001029]
[1769544394501,0.20376271,88576.0,88565.0,0.0001029]
[1769544394827,0.11292399,88575.0,88565.0,0.0001029]
[1769544395146,0.20376271,88576.0,88565.0,0.0001029]
[1769544395352,0.11292403,88575.0,88565.0,0.0001029]
[1769544395504,0.20376271,88576.0,88559.0,0.18580895]
[1769544395706,0.11294582,88575.0,88559.0,0.18580895]
[1769544395905,0.20376271,88576.0,88559.0,0.18580895]
[1769544396071,0.11294582,88575.0,88559.0,0.18580895]
[1769544396277,0.11297214,88574.0,88559.0,0.18580895]
[1769544396489,0.20376271,88576.0,88559.0,0.18580895]
[1769544396729,0.11297214,88575.0,88559.0,0.18580895]
[1769544396964,0.11297214,88574.0,88559.0,0.18580895]
[1769544397164,0.11297214,88573.0,88562.0,0.18580895]
[1769544397389,0.11297214,88572.0,88562.0,0.2091966]
[1769544397716,0.11297214,88571.0,88562.0,0.2091966]
[1769544397889,0.11297214,88570.0,88562.0,0.2091966]
[1769544398091,0.29393243,88578.0,88562.0,0.2091966]
[1769544398294,0.112978,88577.0,88562.0,0.2091966]
[1769544398516,0.112978,88576.0,88562.0,0.2091966]
[1769544398798,0.02311293,88578.0,88562.0,0.2091966]
[1769544399776,0.0903809,88591.0,88568.0,0.26826043]
[1769544399974,0.17864518,88604.0,88564.0,0.02338765]
[1769544400210,0.17864518,88604.0,88581.0,0.02338765]
[1769544400211,0.18064978,88599.0,88581.0,0.02338765]
[1769544400398,0.18064978,88599.0,88582.0,0.18580895]
[1769544400601,0.18064978,88599.0,88582.0,0.2091966]
[1769544400931,0.116,88604.0,88586.0,0.18580895]
[1769544401131,0.116,88604.0,88590.0,0.26826043]
[1769544401418,0.116,88604.0,88591.0,0.20823561]
[1769544401767,0.116,88604.0,88582.0,0.02338765]
[1769544401969,0.18064978,88603.0,88583.0,0.02338765]
[1769544402172,0.18064978,88603.0,88584.0,0.2091966]
[1769544402594,0.18064978,88603.0,88584.0,0.20932758]
[1769544403004,0.20130137,88603.0,88584.0,0.20932758]
[1769544403206,0.26826043,88600.0,88584.0,0.02351863]
[1769544403423,0.18064978,88599.0,88584.0,0.02351863]
[1769544404706,0.18064978,88599.0,88570.0,0.38426043]
[1769544404894,0.26826043,88600.0,88568.0,0.0001932]
[1769544404895,0.18064978,88595.0,88573.0,0.02338765]
[1769544405031,0.18064978,88595.0,88575.0,0.02338765]
[1769544405236,0.18064978,88595.0,88576.0,0.18580895]
[1769544405435,0.18064978,88595.0,88576.0,0.2091966]
[1769544405941,0.26826043,88590.0,88576.0,0.2091966]
[1769544406144,0.18064978,88595.0,88576.0,0.2091966]
[1769544406346,0.20376271,88595.0,88576.0,0.2091966]
[1769544406591,0.18064978,88595.0,88576.0,0.2091966]
[1769544406753,0.26826043,88590.0,88576.0,0.18580895]
[1769544407098,0.26826043,88590.0,88571.0,0.116]
[1769544407099,0.26826043,88590.0,88571.0,0.30180895]
[1769544407305,0.02311293,88589.0,88571.0,0.30180895]
[1769544407523,0.02311293,88589.0,88568.0,0.0001932]
[1769544407524,0.02311293,88579.0,88568.0,0.0001932]
[1769544407710,0.01,88571.0,88568.0,0.0001932]
[1769544407924,0.02311293,88575.0,88558.0,0.02338765]
[1769544408130,0.02311293,88575.0,88559.0,0.18580895]
[1769544408876,0.0232438,88575.0,88558.0,0.02338765]
[1769544409150,0.26826043,88570.0,88557.0,0.0001932]
[1769544409356,0.02311293,88569.0,88557.0,0.0001932]
[1769544409556,0.44891021,88570.0,88545.0,0.18600215]
[1769544409557,0.18064978,88566.0,88545.0,0.18600215]
[1769544409760,0.00013087,88575.0,88545.0,0.0001932]
[1769544409761,0.02311293,88560.0,88545.0,0.0001932]
[1769544409963,0.26826043,88563.0,88545.0,0.0001932]
[1769544409964,0.02311293,88556.0,88545.0,0.0001932]
[1769544410172,0.18064978,88553.0,88545.0,0.0001932]
[1769544410404,0.02311293,88552.0,88538.0,0.0001209]
[1769544411230,0.02311293,88550.0,88538.0,0.0001209]
[1769544414005,0.02311293,88546.0,88538.0,0.0001209]
[1769544414250,0.02311293,88545.0,88538.0,0.0001209]
[1769544415131,0.02284619,88542.0,88538.0,0.00046426]
[1769544415331,0.02284619,88540.0,88530.0,0.26826043]
[1769544415938,0.18305594,88539.0,88522.0,0.0002589]
[1769544416114,0.02284619,88538.0,88522.0,0.0002589]
[1769544416318,0.02284619,88538.0,88528.0,0.26826043]
[1769544416945,0.00046368,88539.0,88528.0,0.26826043]
[1769544418540,0.00046368,88539.0,88528.0,0.47766055]
[1769544418812,0.00046368,88539.0,88529.0,0.18651346]
[1769544421049,0.06154196,88569.0,88529.0,0.26826043]
[1769544421185,0.11604,88562.0,88540.0,0.26826043]
[1769544421548,0.11244664,88561.0,88541.0,0.02009791]
[1769544421791,0.19918703,88559.0,88538.0,0.20940012]
[1769544421970,0.18305594,88559.0,88540.0,0.47376345]
[1769544422168,0.18305594,88557.0,88540.0,0.20076654]
[1769544422391,0.1958738,88557.0,88540.0,0.0181492]
[1769544422606,0.1958738,88557.0,88530.0,0.26826043]
[1769544422607,0.01874006,88554.0,88530.0,0.29114709]
[1769544422840,0.18305594,88549.0,88530.0,0.02288666]
[1769544423016,0.18305594,88549.0,88532.0,0.02288666]
[1769544423259,0.18305594,88549.0,88532.0,0.20940012]
[1769544424497,0.01874006,88550.0,88533.0,0.02288666]
[1769544424743,0.47227885,88586.0,88530.0,0.26826043]
[1769544424744,0.201796,88556.0,88535.0,0.02288666]
[1769544424953,0.201796,88556.0,88540.0,0.26826043]
[1769544425680,0.18305594,88556.0,88540.0,0.26826043]
[1769544425884,0.11604,88562.0,88540.0,0.26826043]
[1769544425885,0.18305594,88554.0,88540.0,0.26826043]
[1769544427970,0.18305594,88554.0,88537.0,0.02288666]
[1769544434305,0.18305594,88554.0,88540.0,0.26826043]
[1769544434465,0.19578774,88569.0,88522.0,0.0002589]
[1769544434466,0.15769085,88571.0,88554.0,0.00999999]
[1769544434672,0.11261336,88563.0,88554.0,0.27826042]
[1769544434865,0.05670721,88577.0,88557.0,0.20940012]
[1769544434866,0.0002589,88577.0,88557.0,0.20940012]
[1769544435217,0.0002589,88577.0,88561.0,0.18651346]
[1769544435460,0.0002589,88577.0,88561.0,0.20940012]
[1769544435668,0.0002589,88577.0,88567.0,0.2682271]
[1769544436100,0.0002589,88577.0,88566.0,0.20940012]
[1769544436300,0.0002589,88577.0,88566.0,0.20953916]
[1769544436582,0.0002589,88577.0,88566.0,0.17560467]
[1769544437419,0.0002589,88577.0,88566.0,0.00013904]
[1769544437978,0.0002589,88577.0,88561.0,0.20940012]
[1769544438216,0.00039804,88577.0,88561.0,0.20940012]
[1769544438932,0.00039804,88577.0,88564.0,0.02288666]
[1769544439135,0.00039804,88577.0,88549.0,0.05417577]
[1769544439136,0.00039804,88577.0,88567.0,0.45474056]
[1769544440855,0.00039804,88577.0,88568.0,0.20940012]
[1769544441420,0.00039804,88577.0,88568.0,0.02288666]
[1769544441628,0.00039804,88577.0,88563.0,0.18651346]
[1769544444447,0.00039804,88577.0,88563.0,0.21045616]
[1769544444644,0.11604,88594.0,88578.0,0.19240948]
[1769544444803,0.11604,88594.0,88580.0,0.2682271]
[1769544445006,0.11604,88594.0,88576.0,0.0239427]
[1769544445253,0.02440297,88592.0,88576.0,0.0239427]
[1769544445454,0.02440297,88592.0,88580.0,0.2682271]
[1769544445666,0.02440297,88592.0,88577.0,0.19240948]
[1769544446861,0.11259888,88591.0,88577.0,0.19240948]
[1769544447070,0.02440297,88592.0,88577.0,0.19240948]
[1769544447292,0.11259888,88591.0,88577.0,0.19240948]
[1769544447470,0.02440297,88592.0,88577.0,0.19240948]
[1769544451316,0.02440297,88592.0,88580.0,0.2682271]
[1769544454161,0.0002589,88608.0,88592.0,0.00999999]
[1769544454362,0.00039807,88608.0,88599.0,0.19240948]
[1769544455536,0.00028687,88608.0,88599.0,0.19240948]
[1769544457766,0.00028687,88608.0,88599.0,0.17120903]
[1769544458041,0.00028687,88608.0,88599.0,0.1709719]
[1769544459424,0.00028687,88608.0,88598.0,0.2682271]
[1769544459879,0.00028687,88608.0,88599.0,0.18973075]
[1769544460509,0.0002855,88616.0,88598.0,0.2682271]
[1769544460702,0.0002855,88616.0,88599.0,0.2140692]
[1769544461013,0.08114506,88615.0,88599.0,0.2140692]
[1769544461218,0.0564245,88614.0,88599.0,0.18973075]
[1769544461421,0.02472072,88614.0,88599.0,0.18060166]
[1769544461774,0.02472072,88614.0,88599.0,0.17147221]
[1769544461948,0.02472072,88614.0,88598.0,0.00013917]
[1769544461949,0.2682271,88610.0,88598.0,0.00013917]
[1769544462153,0.02472072,88602.0,88598.0,0.00013917]
[1769544462356,0.08115293,88602.0,88598.0,0.00013917]
[1769544462529,0.02472072,88601.0,88598.0,0.00013917]
[1769544462734,0.02472072,88601.0,88586.0,0.18973075]
[1769544465774,0.0811536,88601.0,88586.0,0.18973075]
[1769544465977,0.08115359,88601.0,88586.0,0.18973075]
[1769544466558,0.05643393,88600.0,88586.0,0.18973075]
[1769544466758,0.2682271,88600.0,88583.0,0.02433845]
[1769544466961,1.03841241,88631.0,88571.0,0.02433845]
[1769544466962,0.02472072,88591.0,88571.0,0.02433845]
[1769544467172,0.02472072,88589.0,88571.0,0.02447759]
[1769544467406,0.0564461,88581.0,88571.0,0.00013914]
[1769544467579,0.05644809,88577.0,88571.0,0.00013914]
[1769544467767,0.2682271,88590.0,88571.0,0.00013914]
[1769544467768,0.02472072,88578.0,88571.0,0.00013914]
[1769544468264,0.02472072,88584.0,88571.0,0.00013914]
[1769544468475,0.05644289,88586.0,88571.0,0.00013914]
[1769544468669,0.08116361,88586.0,88571.0,0.00013914]
[1769544469091,0.05644324,88585.0,88571.0,0.00013914]
[1769544469324,0.08116368,88585.0,88568.0,0.29256555]
[1769544469480,0.05644608,88581.0,88566.0,0.18973075]
[1769544469684,0.2160983,88583.0,88566.0,0.18973075]
[1769544469926,0.2160983,88583.0,88566.0,0.18909023]
[1769544469927,0.27254265,88583.0,88566.0,0.18909023]
[1769544470136,0.2160983,88583.0,88566.0,0.18909023]
[1769544470309,0.27254313,88583.0,88566.0,0.18909023]
[1769544470510,0.05644492,88582.0,88562.0,0.02433845]
[1769544470712,0.02472072,88583.0,88565.0,0.18973075]
[1769544470913,0.02472072,88583.0,88567.0,0.2140692]
[1769544471644,0.00013907,88585.0,88568.0,0.02433845]
[1769544473509,0.36381292,88597.0,88578.0,0.02433845]
[1769544473685,0.1126886,88596.0,88578.0,0.02433845]
[1769544473881,0.05643723,88594.0,88578.0,0.02433845]
[1769544474119,0.02472072,88595.0,88578.0,0.02433845]
[1769544474277,0.18517789,88587.0,88570.0,0.02447752]
[1769544474478,0.05644286,88586.0,88570.0,0.02447752]
[1769544474678,0.18517789,88585.0,88570.0,0.02447752]
[1769544475084,0.0246373,88587.0,88570.0,0.02447752]
[1769544475085,0.08107901,88587.0,88570.0,0.02447752]
[1769544475291,0.0246373,88587.0,88570.0,0.02447752]
[1769544476337,0.08107912,88587.0,88570.0,0.02245622]
[1769544476659,0.18517789,88586.0,88570.0,0.00830649]
[1769544476957,0.24162059,88586.0,88570.0,0.00628498]
[1769544477162,0.18517789,88586.0,88570.0,0.00628498]
[1769544477803,0.24162028,88586.0,88570.0,0.00628498]
[1769544478087,0.05644324,88585.0,88570.0,0.00628498]
[1769544478715,0.0564437,88584.0,88570.0,0.00628498]
[1769544479282,0.05644324,88585.0,88570.0,0.00628498]
[1769544479907,0.18517789,88596.0,88559.0,0.18235533]
[1769544480115,0.18517789,88596.0,88561.0,0.18235533]
[1769544480116,0.20981519,88581.0,88561.0,0.18235533]
[1769544480364,0.2662608,88581.0,88561.0,0.18235533]
[1769544480515,0.26626082,88581.0,88561.0,0.18235533]
[1769544480883,0.05644635,88580.0,88563.0,0.18235533]
[1769544481105,0.05644635,88580.0,88557.0,0.0002855]
[1769544481106,0.18517789,88589.0,88557.0,0.0002855]
[1769544481295,0.3352963,88590.0,88557.0,0.0002855]
[1769544481297,0.18517789,88579.0,88557.0,0.0002855]
[1769544481538,0.18517789,88569.0,88539.0,0.02426121]
[1769544481726,0.3352963,88570.0,88539.0,0.02426121]
[1769544481727,0.08110274,88550.0,88539.0,0.0002855]
[1769544481846,0.33853177,88568.0,88539.0,0.0002855]
[1769544481847,0.18517789,88547.0,88539.0,0.0002855]
[1769544482046,0.20981519,88547.0,88539.0,0.0002855]
[1769544482764,0.0246373,88547.0,88539.0,0.0002855]
[1769544482985,0.05646024,88558.0,88547.0,0.00999999]
[1769544483197,0.18517789,88555.0,88547.0,0.00999999]
[1769544483424,0.08109906,88556.0,88539.0,0.0002855]
[1769544483425,0.18517789,88553.0,88539.0,0.0002855]
[1769544483576,0.20981519,88552.0,88539.0,0.0002855]
[1769544484328,0.20981519,88551.0,88539.0,0.0002855]
[1769544485174,0.20981519,88551.0,88535.0,0.02397571]
[1769544485377,0.0246373,88551.0,88536.0,0.18235533]
[1769544486563,0.20981519,88551.0,88535.0,0.02397571]
[1769544486983,0.20981519,88551.0,88535.0,0.20633104]
[1769544487188,0.0246373,88551.0,88535.0,0.20633104]
[1769544488639,0.00013904,88558.0,88551.0,0.00999999]
[1769544488795,0.05646112,88557.0,88542.0,0.02397571]
[1769544489000,0.05660041,88558.0,88522.0,0.0002855]
[1769544489001,0.0246373,88556.0,88532.0,0.18235533]
[1769544489201,0.18517789,88553.0,88532.0,0.18235533]
[1769544489413,0.18517789,88551.0,88532.0,0.18235533]
[1769544489644,0.18517789,88551.0,88535.0,0.20633104]
[1769544491251,0.2416428,88551.0,88535.0,0.20633104]
[1769544491468,0.18517789,88551.0,88535.0,0.20633104]
[1769544492506,0.2416426,88551.0,88535.0,0.20633104]
[1769544492982,0.18517789,88551.0,88535.0,0.20633104]
[1769544493206,0.18517789,88551.0,88522.0,0.0002855]
[1769544493207,0.05646098,88557.0,88537.0,0.18235533]
[1769544493427,0.05659958,88558.0,88540.0,0.02397571]
[1769544493734,0.05659958,88558.0,88541.0,0.2060108]
[1769544493862,0.05646145,88556.0,88541.0,0.2060108]
[1769544494997,0.05646213,88555.0,88541.0,0.2060108]
[1769544495221,0.00013904,88558.0,88541.0,0.2060108]
[1769544495420,0.05646323,88554.0,88541.0,0.2060108]
[1769544495633,0.05646345,88553.0,88541.0,0.2060108]
[1769544496549,0.00013904,88558.0,88541.0,0.2060108]
[1769544496777,0.00013904,88558.0,88532.0,0.02397571]
[1769544496778,0.0564658,88550.0,88532.0,0.02397571]
[1769544496994,0.0564658,88550.0,88535.0,0.02397571]
[1769544497229,0.20981519,88555.0,88535.0,0.02397571]
[1769544497451,0.20981519,88555.0,88536.0,0.20633104]
[1769544497452,0.11256762,88554.0,88536.0,0.20633104]
[1769544497690,0.05646368,88553.0,88536.0,0.20633104]
[1769544497904,0.05646425,88552.0,88536.0,0.18235533]
[1769544498135,0.05646425,88552.0,88537.0,0.02397571]
[1769544498371,0.05646404,88552.0,88537.0,0.02397571]
[1769544498599,0.05646463,88551.0,88537.0,0.02397571]
[1769544498863,0.05646553,88550.0,88537.0,0.02397571]
[1769544499126,0.0246373,88554.0,88530.0,0.26842275]
[1769544499337,0.00013904,88558.0,88526.0,0.20633104]
[1769544499338,0.05647018,88543.0,88526.0,0.20633104]
[1769544499578,0.05646986,88543.0,88526.0,0.20633104]
[1769544499806,0.24164705,88544.0,88526.0,0.20633104]
[1769544499807,0.18517789,88544.0,88526.0,0.20633104]
[1769544500479,0.18517789,88544.0,88526.0,0.18235533]
[1769544500687,0.18517789,88544.0,88527.0,0.20633104]
[1769544501345,0.18517789,88544.0,88527.0,0.18235533]
[1769544501546,0.18517789,88544.0,88528.0,0.02397571]
[1769544501752,0.01499417,88545.0,88528.0,0.20633104]
[1769544502368,0.05646756,88547.0,88528.0,0.20633104]
[1769544502592,0.05646847,88545.0,88528.0,0.20633104]
[1769544502799,0.05646786,88546.0,88528.0,0.20633104]
[1769544503010,0.0246373,88548.0,88531.0,0.02390916]
[1769544503219,0.00013904,88558.0,88534.0,0.18852101]
[1769544503220,0.05646575,88550.0,88534.0,0.18852101]
[1769544503426,0.02463638,88550.0,88533.0,0.02390916]
[1769544503633,0.18347991,88546.0,88526.0,0.21243017]
[1769544503837,0.18347991,88546.0,88528.0,0.18852101]
[1769544504089,0.23994801,88546.0,88529.0,0.21243017]
[1769544504292,0.23994801,88546.0,88530.0,0.26842275]
[1769544504902,0.23994801,88546.0,88530.0,0.44831083]
[1769544505109,0.02463638,88548.0,88530.0,0.26842275]
[1769544505313,0.02463638,88548.0,88531.0,0.17988808]
[1769544505314,0.05646776,88547.0,88531.0,0.17988808]
[1769544505718,0.02463638,88548.0,88531.0,0.17988808]
[1769544505926,0.05646487,88551.0,88533.0,0.17988808]
[1769544506142,0.05646487,88551.0,88533.0,0.20264285]
[1769544506317,0.11274712,88550.0,88533.0,0.20264285]
[1769544506493,0.05646558,88550.0,88533.0,0.20264285]
[1769544506701,0.22739769,88549.0,88533.0,0.20264285]
[1769544507101,0.05646676,88548.0,88533.0,0.20264285]
[1769544507283,0.17093152,88549.0,88533.0,0.20264285]
[1769544507481,0.05646693,88548.0,88533.0,0.20264285]
[1769544507678,0.2273975,88549.0,88533.0,0.20264285]
[1769544507893,0.02358967,88553.0,88534.0,0.02275477]
[1769544508102,0.11280324,88552.0,88537.0,0.17988808]
[1769544508409,0.11280324,88551.0,88538.0,0.20264285]
[1769544508611,0.11280324,88550.0,88542.0,0.02275477]
[1769544509012,0.05646214,88555.0,88542.0,0.19586085]
[1769544509189,0.11287821,88554.0,88542.0,0.19586085]
[1769544509426,0.11287821,88553.0,88542.0,0.18568785]
[1769544509597,0.11287821,88552.0,88542.0,0.18568785]
[1769544509818,0.11287821,88551.0,88542.0,0.18229685]
[1769544510020,0.11287821,88550.0,88542.0,0.17551485]
[1769544510230,0.11287821,88549.0,88542.0,0.17551485]
[1769544510440,0.00013904,88558.0,88543.0,0.02275477]
[1769544510572,0.00013904,88558.0,88544.0,0.17988808]
[1769544510776,0.11604,88566.0,88549.0,0.17988808]
[1769544511011,0.11604,88566.0,88551.0,0.17988808]
[1769544511012,9.427e-05,88566.0,88551.0,0.17988808]
[1769544511164,9.427e-05,88566.0,88554.0,0.02275477]
[1769544511370,0.08992423,88579.0,88567.0,0.17988808]
[1769544511615,0.08992423,88581.0,88567.0,0.17956784]
[1769544511811,0.00589891,88589.0,88560.0,0.26842275]
[1769544511812,0.0002855,88582.0,88572.0,0.17988808]
[1769544511964,0.0002855,88582.0,88573.0,0.02275477]
[1769544512170,0.0002855,88582.0,88573.0,0.20264285]
[1769544512878,0.17093152,88593.0,88573.0,0.20264285]
[1769544513082,0.05644038,88590.0,88573.0,0.20264285]
[1769544513307,0.05643944,88591.0,88573.0,0.20264285]
[1769544513715,0.19466034,88593.0,88574.0,0.02275477]
[1769544513939,0.05643893,88592.0,88574.0,0.20264285]
[1769544514287,0.02391612,88593.0,88574.0,0.20264285]
[1769544514552,0.17093152,88586.0,88567.0,0.02275477]
[1769544514756,0.02358967,88589.0,88570.0,0.17988808]
[1769544514991,0.02358967,88606.0,88580.0,0.17988808]
[1769544515168,1.03795779,88636.0,88589.0,0.00999999]
[1769544515169,0.05643652,88596.0,88589.0,0.00999999]
[1769544515326,0.26842275,88600.0,88580.0,0.00013915]
[1769544515327,0.22736719,88597.0,88580.0,0.00013915]
[1769544515663,0.05643708,88595.0,88580.0,0.00013915]
[1769544515864,0.17093152,88597.0,88580.0,0.00013915]
[1769544515865,0.05643623,88596.0,88580.0,0.00013915]
[1769544516076,0.17093152,88597.0,88580.0,0.00013915]
[1769544516664,0.02358967,88599.0,88580.0,0.18002723]
[1769544516850,0.02358967,88599.0,88581.0,0.20264285]
[1769544517048,0.02358967,88599.0,88581.0,0.20232261]
[1769544517651,0.17093152,88598.0,88581.0,0.20232261]
[1769544517845,0.17093152,88598.0,88581.0,0.02243453]
[1769544518048,0.05643679,88595.0,88581.0,0.02243453]
[1769544518434,0.0564406,88589.0,88580.0,0.00013915]
[1769544518636,0.0564402,88590.0,88580.0,0.00013915]
[1769544518837,0.17093152,88591.0,88580.0,0.00013915]
[1769544519052,0.02358967,88592.0,88580.0,0.00013915]
[1769544519248,0.02342944,88592.0,88580.0,0.00013915]
[1769544519724,0.05643691,88595.0,88580.0,0.00013915]
[1769544519861,0.10597844,88618.0,88581.0,0.02275477]
[1769544519862,0.020736,88618.0,88581.0,0.02275477]
[1769544520065,0.0062358,88619.0,88604.0,0.0002929]
[1769544520307,0.00589627,88609.0,88604.0,0.0002929]
[1769544520497,0.0062358,88619.0,88604.0,0.02304767]
[1769544520822,0.0004,88631.0,88608.0,0.02275477]
[1769544520969,0.0004,88631.0,88611.0,0.17988808]
[1769544521172,0.05641491,88630.0,88612.0,0.02275477]
[1769544521399,0.17093152,88628.0,88612.0,0.02275477]
[1769544521608,0.22734712,88628.0,88612.0,0.02275477]
[1769544522045,0.17093152,88632.0,88612.0,0.02275477]
[1769544522213,0.01590283,88633.0,88612.0,0.02275477]
[1769544522214,0.05641665,88627.0,88612.0,0.02275477]
[1769544522417,0.00013913,88621.0,88612.0,0.02261989]
[1769544522643,0.00013913,88621.0,88612.0,0.02185516]
[1769544522887,0.00013913,88621.0,88612.0,0.02116141]
[1769544523070,0.17093152,88620.0,88589.0,0.17988808]
[1769544523227,0.17093152,88620.0,88595.0,0.02399513]
[1769544523424,0.00013913,88621.0,88598.0,0.17988808]
[1769544523635,0.00013913,88621.0,88593.0,0.05417577]
[1769544523636,0.00013913,88621.0,88601.0,0.02399513]
[1769544523853,0.00013913,88621.0,88604.0,0.17988808]
[1769544524093,0.00013913,88621.0,88606.0,0.17988808]
[1769544524257,0.00013913,88621.0,88607.0,0.02399513]